[Event "POL-chT 2 Liga 2019"]
[Site "Poronin"]
[Date "2019.09.15"]
[Round "9.23"]
[White "Czyz, Artur"]
[Black "Hasterok, Mateusz"]
[Result "0-1"]
[ECO "A80"]
[WhiteElo "1907"]
[BlackElo "1985"]
[Annotator "NA"]
[PlyCount "94"]
[EventDate "2019.09.07"]
[EventType "team-tourn"]
[EventCountry "POL"]
[SourceTitle "playchess.com"]
[Source "ChessBase"]
[SourceQuality "1"]
[TimeControl "40/5400+30:1800+30"]

1. d4 {[%emt 0:00:00]} f5 {[%emt 0:00:43]} 2. Nf3 {[%emt 0:01:08]} Nf6 {[%emt 0:00:07]} 3. d5 {[%emt 0:03:51]} g6 {[%emt 0:00:55]} 4. b3 {[%emt 0:07:51]} c6 {[%emt 0:03:26]} 5. Bb2 {[%emt 0:03:58]} Bg7 {[%emt 0:03:05]} 6. d6 {[%emt 0:07:00]} O-O {[%emt 0:01:26]} 7. e3 {[%emt 0:11:43]} exd6 {[%emt 0:02:31]} 8. Qxd6 {[%emt 0:00:51]} Ne4 {[%emt 0:01:12]} 9. Bc4+ {[%emt 0:17:27]} Kh8 {[%emt 0:00:02]} 10. Bxg7+ {[%emt 0:00:09]} Kxg7 {[%emt 0:00:06]} 11. Qd4+ {[%emt 0:00:25]} Qf6 {[%emt 0:00:16]} 12. O-O {[%emt 0:01:14]} d5 {[%emt 0:02:12]} 13. Be2 {[%emt 0:00:34]} Be6 {[%emt 0:02:59]} 14. Rc1 {[%emt 0:04:44]} Nd7 {[%emt 0:05:20]} 15. Nbd2 {[%emt 0:08:32]} Nc3 {[%emt 0:04:51]} 16. Bf1 {[%emt 0:00:39]} c5 {[%emt 0:01:15]} 17. Qxf6+ {[%emt 0:03:11]} Nxf6 {[%emt 0:00:11]} 18. Ng5 {[%emt 0:00:46]} Bd7 {[%emt 0:01:29]} 19. Nb1 {[%emt 0:01:18]} Nce4 {[%emt 0:05:00]} 20. Nf3 {[%emt 0:01:58]} Ng4 {[%emt 0:05:50]} 21. c4 {[%emt 0:03:02]} Ngxf2 {[%emt 0:00:46]} 22. cxd5 {[%emt 0:01:59]} Ng4 {[%emt 0:01:53]} 23. Nc3 {[%emt 0:01:09]} b6 {[%emt 0:02:18]} 24. Nxe4 {[%emt 0:04:35]} fxe4 {[%emt 0:00:08]} 25. Ng5 {[%emt 0:01:09]} Nxe3 {[%emt 0:02:31]} 26. Nxe4 {[%emt 0:01:07]} Nxd5 {[%emt 0:00:33]} 27. Bc4 {[%emt 0:01:09]} Ne3 {[%emt 0:01:03]} 28. Be2 {[%emt 0:01:15]} Bc6 {[%emt 0:00:56]} 29. Bf3 {[%emt 0:00:11]} Bxe4 {[%emt 0:07:50]} 30. Bxe4 {[%emt 0:00:04]} Rae8 {[%emt 0:00:11]} 31. Bf3 {[%emt 0:00:28]} Rd8 {[%emt 0:01:30]} 32. Rc3 {[%emt 0:01:11]} Nf5 {[%emt 0:00:20]} 33. a4 {[%emt 0:01:26]} Rd2 {[%emt 0:01:29]} 34. a5 {[%emt 0:03:14]} Nd4 {[%emt 0:01:41]} 35. axb6 {[%emt 0:00:44]} axb6 {[%emt 0:00:04]} 36. Re3 {[%emt 0:01:18]} Nxf3+ {[%emt 0:00:29]} 37. gxf3 {[%emt 0:00:41]} Rf4 {[%emt 0:01:26]} 38. Ra7+ {[%emt 0:00:28]} Kh6 {[%emt 0:00:22]} 39. Rb7 {[%emt 0:01:15]} Rb4 {[%emt 0:00:12]} 40. Re6 {[%emt 0:00:00]} Rxb3 {[%emt 0:00:00]} 41. Rexb6 {[%emt 0:08:25]} Rxf3 {[%emt 0:01:46]} 42. Rb3 {[%emt 0:00:19]} Rxb3 {[%emt 0:00:59]} 43. Rxb3 {[%emt 0:00:05]} Rc2 {[%emt 0:00:04]} 44. Rb8 {[%emt 0:02:51]} c4 {[%emt 0:00:12]} 45. Rc8 {[%emt 0:00:04]} c3 {[%emt 0:00:03]} 46. Rc7 {[%emt 0:00:13]} Kg5 {[%emt 0:00:54]} 47. Rxh7 {[%emt 0:01:38]} Rd2 {[%emt 0:00:21]} 0-1

[Event "POL-chT 2 Liga 2019"]
[Site "Poronin"]
[Date "2019.09.15"]
[Round "9.24"]
[White "Poznanska, Katarzyna"]
[Black "Dmochowska, Agnieszka"]
[Result "0-1"]
[ECO "B30"]
[WhiteElo "2082"]
[BlackElo "2110"]
[Annotator "NA"]
[PlyCount "102"]
[EventDate "2019.09.07"]
[EventType "team-tourn"]
[EventCountry "POL"]
[SourceTitle "playchess.com"]
[Source "ChessBase"]
[SourceQuality "1"]
[TimeControl "40/5400+30:1800+30"]

1. e4 {[%emt 0:05:16]} c5 {[%emt 0:00:23]} 2. Nf3 {[%emt 0:00:09]} Nc6 {[%emt 0:00:06]} 3. c4 {[%emt 0:00:10]} e6 {[%emt 0:03:23]} 4. Nc3 {[%emt 0:00:22]} Nge7 {[%emt 0:03:43]} 5. d4 {[%emt 0:02:25]} cxd4 {[%emt 0:08:32]} 6. Nxd4 {[%emt 0:00:10]} Nxd4 {[%emt 0:01:21]} 7. Qxd4 {[%emt 0:00:06]} Nc6 {[%emt 0:00:05]} 8. Qd2 {[%emt 0:03:52]} Be7 {[%emt 0:02:03]} 9. Be2 {[%emt 0:00:53]} O-O {[%emt 0:00:13]} 10. O-O {[%emt 0:00:24]} f5 {[%emt 0:01:04]} 11. exf5 {[%emt 0:09:57]} Rxf5 {[%emt 0:00:54]} 12. Ne4 {[%emt 0:02:10]} d5 {[%emt 0:03:49]} 13. Ng3 {[%emt 0:00:16]} Rf8 {[%emt 0:03:57]} 14. b3 {[%emt 0:11:28]} Bb4 {[%emt 0:23:39]} 15. Qe3 {[%emt 0:06:46]} b6 {[%emt 0:09:13]} 16. Bb2 {[%emt 0:05:43]} Bc5 {[%emt 0:00:36]} 17. Qd2 {[%emt 0:02:14]} d4 {[%emt 0:01:09]} 18. a3 {[%emt 0:01:29]} a5 {[%emt 0:01:58]} 19. Bd3 {[%emt 0:03:00]} Bb7 {[%emt 0:04:09]} 20. Qe2 {[%emt 0:02:33]} Qf6 {[%emt 0:04:40]} 21. Rae1 {[%emt 0:07:15]} Rae8 {[%emt 0:00:53]} 22. Ne4 {[%emt 0:01:05]} Qe7 {[%emt 0:02:14]} 23. f4 {[%emt 0:13:45]} e5 {[%emt 0:14:15]} 24. Ng5 {[%emt 0:09:12]} g6 {[%emt 0:01:52]} 25. Qg4 {[%emt 0:00:28]} Bc8 {[%emt 0:01:47]} 26. Qh4 {[%emt 0:04:22]} Qg7 {[%emt 0:02:45]} 27. Be4 {[%emt 0:03:10]} Ne7 {[%emt 0:01:25]} 28. fxe5 {[%emt 0:00:31]} Bf5 {[%emt 0:00:48]} 29. Bxf5 {[%emt 0:00:10]} Nxf5 {[%emt 0:00:05]} 30. Qe4 {[%emt 0:00:20]} Qh6 {[%emt 0:02:49]} 31. Qd5+ {[%emt 0:00:22]} Kg7 {[%emt 0:00:21]} 32. Ne4 {[%emt 0:00:36]} Ne3 {[%emt 0:00:29]} 33. Bc1 {[%emt 0:02:58]} Nxd5 {[%emt 0:01:11]} 34. Bxh6+ {[%emt 0:00:01]} Kxh6 {[%emt 0:00:01]} 35. Rxf8 {[%emt 0:01:26]} Bxf8 {[%emt 0:00:14]} 36. cxd5 {[%emt 0:00:14]} Rxe5 {[%emt 0:00:07]} 37. Rf1 {[%emt 0:02:29]} Bxa3 {[%emt 0:01:17]} 38. Nf6 {[%emt 0:00:22]} Kg7 {[%emt 0:00:55]} 39. Nd7 {[%emt 0:00:17]} Rxd5 {[%emt 0:00:04]} 40. Nxb6 {[%emt 0:00:00]} Rb5 {[%emt 0:00:00]} 41. Nc4 {[%emt 0:00:17]} Bb4 {[%emt 0:05:05]} 42. g4 {[%emt 0:09:23]} Rg5 {[%emt 0:18:25]} 43. h3 {[%emt 0:01:04]} h5 {[%emt 0:00:11]} 44. Rf4 {[%emt 0:00:18]} d3 {[%emt 0:00:46]} 45. Kg2 {[%emt 0:01:34]} Rd5 {[%emt 0:01:17]} 46. Rf1 {[%emt 0:00:11]} hxg4 {[%emt 0:00:14]} 47. hxg4 {[%emt 0:00:02]} d2 {[%emt 0:00:19]} 48. Nb2 {[%emt 0:01:23]} Kh6 {[%emt 0:01:52]} 49. Kf3 {[%emt 0:00:51]} Kg5 {[%emt 0:00:04]} 50. Ke4 {[%emt 0:00:52]} Rd7 {[%emt 0:01:05]} 51. Nd3 {[%emt 0:00:35]} Re7+ {[%emt 0:00:10]} 0-1

[Event "POL-chT 2 Liga 2019"]
[Site "Poronin"]
[Date "2019.09.15"]
[Round "9.25"]
[White "Bator, Robert"]
[Black "Goluch, Piotr"]
[Result "1/2-1/2"]
[ECO "A13"]
[WhiteElo "2358"]
[BlackElo "2428"]
[Annotator "ChessBase"]
[PlyCount "42"]
[EventDate "2019.09.07"]
[EventType "team-tourn"]
[EventCountry "POL"]
[SourceTitle "playchess.com"]
[Source "ChessBase"]
[SourceQuality "1"]
[TimeControl "40/5400+30:1800+30"]

1. Nf3 {[%emt 0:00:32]} Nf6 {[%emt 0:00:00]} 2. c4 {[%emt 0:00:05]} e6 {[%emt 0:01:39]} 3. g3 {[%emt 0:00:05]} d5 {[%emt 0:00:20]} 4. Bg2 {[%emt 0:00:11]} dxc4 {[%emt 0:00:03]} 5. Na3 {[%emt 0:02:38]} Bxa3 {[%emt 0:07:37]} 6. Qa4+ {[%emt 0:00:17]} b5 {[%emt 0:01:11]} 7. Qxa3 {[%emt 0:00:08]} Bb7 {[%emt 0:03:44]} 8. b3 {[%emt 0:00:34]} cxb3 {[%emt 0:01:38]} 9. Qxb3 {[%emt 0:01:23]} a6 {[%emt 0:05:36]} 10. a4 {[%emt 0:01:11]} Bd5 {[%emt 0:03:32]} 11. Qb1 {[%emt 0:01:36]} Nbd7 {[%emt 0:00:29]} 12. d3 {[%emt 0:07:13]} c5 {[%emt 0:04:25]} 13. axb5 {[%emt 0:05:13]} axb5 {[%emt 0:00:22]} 14. Rxa8 {[%emt 0:00:14]} Qxa8 {[%emt 0:00:02]} 15. Qxb5 {[%emt 0:00:12]} O-O {[%emt 0:00:09]} 16. Qb2 {[%emt 0:00:12]} Rb8 {[%emt 0:00:50]} 17. Qc3 {[%emt 0:02:57]} Rb3 {[%emt 0:03:05]} 18. Qc2 {[%emt 0:02:43]} Qa5+ {[%emt 0:08:09]} 19. Qd2 {[%emt 0:02:12]} Qa8 {[%emt 0:02:43]} 20. Qc2 {[%emt 0:01:58]} Qa5+ {[%emt 0:14:46]} 21. Qd2 {[%emt 0:00:45]} Qa8 {[%emt 0:00:19]} 1/2-1/2

[Event "POL-chT 2 Liga 2019"]
[Site "Poronin"]
[Date "2019.09.15"]
[Round "9.26"]
[White "Lukasiewicz, Krzysztof"]
[Black "Marszalek, Maciej"]
[Result "1/2-1/2"]
[ECO "C50"]
[WhiteElo "2254"]
[BlackElo "2301"]
[Annotator "ChessBase"]
[PlyCount "31"]
[EventDate "2019.09.07"]
[EventType "team-tourn"]
[EventCountry "POL"]
[SourceTitle "playchess.com"]
[Source "ChessBase"]
[SourceQuality "1"]
[TimeControl "40/5400+30:1800+30"]

1. e4 {[%emt 0:00:00]} e5 {[%emt 0:00:04]} 2. Nf3 {[%emt 0:00:00]} Nc6 {[%emt 0:00:04]} 3. Bc4 {[%emt 0:00:00]} Bc5 {[%emt 0:00:34]} 4. O-O {[%emt 0:00:31]} Nf6 {[%emt 0:01:06]} 5. d3 {[%emt 0:00:03]} d6 {[%emt 0:00:30]} 6. c3 {[%emt 0:00:05]} h6 {[%emt 0:01:52]} 7. Nbd2 {[%emt 0:00:45]} O-O {[%emt 0:00:23]} 8. h3 {[%emt 0:01:45]} a6 {[%emt 0:00:36]} 9. Bb3 {[%emt 0:00:25]} Ba7 {[%emt 0:00:53]} 10. Re1 {[%emt 0:00:06]} Re8 {[%emt 0:01:42]} 11. Nf1 {[%emt 0:00:07]} Be6 {[%emt 0:00:32]} 12. Bc2 {[%emt 0:00:08]} d5 {[%emt 0:01:00]} 13. exd5 {[%emt 0:00:04]} Bxd5 {[%emt 0:01:34]} 14. Ng3 {[%emt 0:00:21]} b5 {[%emt 0:18:46]} 15. Be3 {[%emt 0:04:22]} Bb6 {[%emt 0:04:00]} 16. Bxb6 {[%emt 0:06:50]} 1/2-1/2

[Event "POL-chT 2 Liga 2019"]
[Site "Poronin"]
[Date "2019.09.15"]
[Round "9.27"]
[White "Brzeski, Maciej"]
[Black "Jankowiak, Tomasz"]
[Result "1-0"]
[ECO "B20"]
[WhiteElo "2339"]
[BlackElo "2075"]
[Annotator "NA"]
[PlyCount "105"]
[EventDate "2019.09.07"]
[EventType "team-tourn"]
[EventCountry "POL"]
[SourceTitle "playchess.com"]
[Source "ChessBase"]
[SourceQuality "1"]
[TimeControl "40/5400+30:1800+30"]

1. e4 {[%emt 0:00:00]} c5 {[%emt 0:00:00]} 2. Ne2 {[%emt 0:00:00]} Nf6 {[%emt 0:05:05]} 3. e5 {[%emt 0:01:10]} Nd5 {[%emt 0:00:04]} 4. Nbc3 {[%emt 0:00:18]} e6 {[%emt 0:01:41]} 5. Nxd5 {[%emt 0:22:39]} exd5 {[%emt 0:04:20]} 6. d4 {[%emt 0:00:48]} d6 {[%emt 0:03:10]} 7. exd6 {[%emt 0:06:42]} Bxd6 {[%emt 0:00:09]} 8. dxc5 {[%emt 0:02:09]} Bxc5 {[%emt 0:00:10]} 9. Nf4 {[%emt 0:00:06]} O-O {[%emt 0:11:22]} 10. Be2 {[%emt 0:07:08]} d4 {[%emt 0:07:50]} 11. O-O {[%emt 0:00:12]} Bf5 {[%emt 0:01:04]} 12. Bd3 {[%emt 0:01:37]} Bxd3 {[%emt 0:00:25]} 13. Nxd3 {[%emt 0:01:29]} Bd6 {[%emt 0:00:31]} 14. Bf4 {[%emt 0:11:37]} Nc6 {[%emt 0:01:29]} 15. Qd2 {[%emt 0:00:47]} Re8 {[%emt 0:02:16]} 16. Rfe1 {[%emt 0:01:11]} Qf6 {[%emt 0:01:33]} 17. Rxe8+ {[%emt 0:02:00]} Rxe8 $11 {[%emt 0:00:07]} 18. Re1 {[%emt 0:00:06]} Rxe1+ {[%emt 0:06:41]} 19. Qxe1 {[%emt 0:00:02]} g5 {[%emt 0:03:23]} 20. Bd2 {[%emt 0:03:32]} Qe7 {[%emt 0:06:51]} 21. Qxe7 {[%emt 0:03:12]} Bxe7 {[%emt 0:00:13]} 22. g4 {[%emt 0:00:02]} f6 {[%emt 0:01:27]} 23. Kg2 {[%emt 0:00:11]} Kf7 {[%emt 0:03:48]} 24. Kf3 {[%emt 0:00:12]} Ne5+ {[%emt 0:00:36]} 25. Nxe5+ {[%emt 0:03:09]} fxe5 {[%emt 0:03:47]} 26. Ke4 {[%emt 0:00:02]} Ke6 {[%emt 0:00:08]} 27. a4 {[%emt 0:00:05]} a6 {[%emt 0:03:52]} 28. Ba5 {[%emt 0:00:43]} b5 {[%emt 0:03:46]} 29. axb5 {[%emt 0:01:24]} axb5 {[%emt 0:00:07]} 30. Bc7 {[%emt 0:00:05]} Bf6 {[%emt 0:00:06]} 31. f3 {[%emt 0:00:30]} h6 {[%emt 0:07:57]} 32. Ba5 {[%emt 0:01:16]} Be7 {[%emt 0:00:32]} 33. c3 {[%emt 0:01:55]} dxc3 {[%emt 0:00:38]} 34. Bxc3 {[%emt 0:00:04]} Bd6 {[%emt 0:04:04]} 35. b3 {[%emt 0:00:04]} b4 {[%emt 0:02:05]} 36. Be1 {[%emt 0:00:36]} Be7 {[%emt 0:03:18]} 37. Bf2 {[%emt 0:00:11]} Bd6 {[%emt 0:02:17]} 38. h4 {[%emt 0:00:24]} gxh4 {[%emt 0:05:49]} 39. Bxh4 {[%emt 0:00:01]} Bc5 {[%emt 0:00:25]} 40. Be1 {[%emt 0:00:00]} Be7 {[%emt 0:00:00]} 41. Bd2 {[%emt 0:00:08]} Bf8 {[%emt 0:02:19]} 42. Bc1 {[%emt 0:00:04]} Kf6 {[%emt 0:10:25]} 43. Bb2 {[%emt 0:03:26]} h5 {[%emt 0:01:51]} 44. gxh5 {[%emt 0:00:07]} Kg5 {[%emt 0:00:07]} 45. Bxe5 {[%emt 0:00:19]} Kxh5 {[%emt 0:00:39]} 46. Kf5 {[%emt 0:00:03]} Kh4 {[%emt 0:01:47]} 47. Ke6 {[%emt 0:00:05]} Kh3 {[%emt 0:04:49]} 48. f4 {[%emt 0:00:09]} Kg4 {[%emt 0:00:04]} 49. f5 {[%emt 0:00:03]} Kg5 {[%emt 0:00:44]} 50. f6 {[%emt 0:00:48]} Kg6 {[%emt 0:00:05]} 51. f7 {[%emt 0:00:04]} Kh7 {[%emt 0:00:07]} 52. Bd6 {[%emt 0:00:08]} Kg7 {[%emt 0:00:18]} 53. Be7 {[%emt 0:00:04]} 1-0

[Event "POL-chT 2 Liga 2019"]
[Site "Poronin"]
[Date "2019.09.15"]
[Round "9.28"]
[White "Dryja, Szymon"]
[Black "Jaskolka, Tomasz"]
[Result "0-1"]
[ECO "A05"]
[WhiteElo "1854"]
[BlackElo "2236"]
[Annotator "ChessBase"]
[PlyCount "78"]
[EventDate "2019.09.07"]
[EventType "team-tourn"]
[EventCountry "POL"]
[SourceTitle "playchess.com"]
[Source "ChessBase"]
[SourceQuality "1"]
[TimeControl "40/5400+30:1800+30"]

1. Nf3 {[%emt 0:00:00]} Nf6 {[%emt 0:00:00]} 2. c4 {[%emt 0:00:00]} g6 {[%emt 0:00:00]} 3. b3 {[%emt 0:00:00]} Bg7 {[%emt 0:00:00]} 4. Bb2 {[%emt 0:00:04]} O-O {[%emt 0:00:00]} 5. d4 {[%emt 0:00:47]} c6 {[%emt 0:00:44]} 6. e3 {[%emt 0:00:10]} d5 {[%emt 0:01:06]} 7. Bd3 {[%emt 0:00:58]} Ne4 {[%emt 0:00:46]} 8. Nbd2 {[%emt 0:03:12]} f5 {[%emt 0:00:40]} 9. Ne5 {[%emt 0:02:01]} Nd7 {[%emt 0:00:36]} 10. Nxd7 {[%emt 0:02:09]} Qxd7 {[%emt 0:01:47]} 11. f3 {[%emt 0:00:09]} Nc5 {[%emt 0:08:39]} 12. Be2 {[%emt 0:02:01]} Qe6 {[%emt 0:01:15]} 13. Qc2 {[%emt 0:02:13]} Na6 {[%emt 0:02:32]} 14. e4 {[%emt 0:06:21]} fxe4 {[%emt 0:01:16]} 15. fxe4 {[%emt 0:00:07]} Nb4 {[%emt 0:02:06]} 16. Qc3 {[%emt 0:00:32]} Bxd4 {[%emt 0:01:25]} 17. Qxb4 {[%emt 0:00:21]} Bxb2 {[%emt 0:01:02]} 18. cxd5 {[%emt 0:01:03]} cxd5 {[%emt 0:04:29]} 19. Rb1 {[%emt 0:01:58]} Qe5 {[%emt 0:01:17]} 20. Qc5 {[%emt 0:03:49]} Be6 {[%emt 0:02:00]} 21. Nf3 {[%emt 0:07:02]} Qc3+ {[%emt 0:01:16]} 22. Qxc3 {[%emt 0:00:23]} Bxc3+ {[%emt 0:00:03]} 23. Kd1 {[%emt 0:01:23]} dxe4 {[%emt 0:00:31]} 24. Ng5 {[%emt 0:00:52]} Bf5 {[%emt 0:00:17]} 25. g4 {[%emt 0:00:28]} Bf6 {[%emt 0:05:23]} 26. Bc4+ {[%emt 0:01:16]} Kg7 {[%emt 0:01:02]} 27. Ne6+ {[%emt 0:00:20]} Bxe6 {[%emt 0:00:05]} 28. Bxe6 {[%emt 0:00:05]} Bd4 {[%emt 0:06:06]} 29. Ke1 {[%emt 0:02:39]} Rf3 {[%emt 0:04:00]} 30. h4 {[%emt 0:02:47]} Raf8 {[%emt 0:03:02]} 31. Rc1 {[%emt 0:01:12]} Re3+ {[%emt 0:01:15]} 32. Kd1 {[%emt 0:00:42]} Rd3+ {[%emt 0:00:33]} 33. Ke1 {[%emt 0:00:23]} Rff3 {[%emt 0:03:59]} 34. Rc2 {[%emt 0:01:22]} Rfe3+ {[%emt 0:02:36]} 35. Kf1 {[%emt 0:00:51]} Rf3+ {[%emt 0:03:58]} 36. Ke1 {[%emt 0:00:30]} Be5 {[%emt 0:00:50]} 37. Rc8 {[%emt 0:06:44]} Bg3+ {[%emt 0:00:23]} 38. Ke2 {[%emt 0:00:04]} Rf2+ {[%emt 0:00:09]} 39. Ke1 {[%emt 0:00:20]} Rc2+ {[%emt 0:00:17]} 0-1

[Event "POL-chT 2 Liga 2019"]
[Site "Poronin"]
[Date "2019.09.15"]
[Round "9.29"]
[White "Pulik, Krzysztof"]
[Black "Statucki, Maciej"]
[Result "1-0"]
[ECO "B22"]
[WhiteElo "2131"]
[BlackElo "1754"]
[Annotator "NA"]
[PlyCount "113"]
[EventDate "2019.09.07"]
[EventType "team-tourn"]
[EventCountry "POL"]
[SourceTitle "playchess.com"]
[Source "ChessBase"]
[SourceQuality "1"]
[TimeControl "40/5400+30:1800+30"]

1. e4 {[%emt 0:00:00]} c5 {[%emt 0:00:00]} 2. c3 {[%emt 0:00:00]} d5 {[%emt 0:00:00]} 3. exd5 {[%emt 0:00:02]} Qxd5 {[%emt 0:00:06]} 4. d4 {[%emt 0:00:07]} Nc6 {[%emt 0:01:27]} 5. Nf3 {[%emt 0:01:11]} Bf5 {[%emt 0:01:11]} 6. Be3 {[%emt 0:00:33]} cxd4 {[%emt 0:01:32]} 7. cxd4 {[%emt 0:00:55]} Bxb1 {[%emt 0:00:42]} 8. Rxb1 {[%emt 0:00:05]} e6 {[%emt 0:02:05]} 9. a3 {[%emt 0:02:40]} Nf6 {[%emt 0:01:54]} 10. Bd3 {[%emt 0:02:48]} Be7 {[%emt 0:00:14]} 11. O-O {[%emt 0:01:50]} O-O {[%emt 0:00:57]} 12. Qe2 {[%emt 0:00:17]} a5 {[%emt 0:06:47]} 13. Rbd1 {[%emt 0:02:52]} Rfd8 {[%emt 0:03:54]} 14. Rfe1 {[%emt 0:01:46]} Qh5 {[%emt 0:05:29]} 15. Bb1 {[%emt 0:05:07]} Nd5 {[%emt 0:03:21]} 16. Qb5 {[%emt 0:07:44]} Ra6 {[%emt 0:02:56]} 17. Rd2 {[%emt 0:09:58]} Rb6 {[%emt 0:03:57]} 18. Qd3 {[%emt 0:01:09]} Bf6 {[%emt 0:03:46]} 19. Qe4 {[%emt 0:11:51]} Qg6 {[%emt 0:08:13]} 20. Red1 {[%emt 0:04:12]} Nce7 {[%emt 0:06:18]} 21. Qxg6 {[%emt 0:03:10]} hxg6 {[%emt 0:01:00]} 22. g4 {[%emt 0:02:41]} Nxe3 {[%emt 0:02:41]} 23. fxe3 {[%emt 0:00:07]} Nd5 {[%emt 0:00:13]} 24. Kf2 {[%emt 0:01:07]} g5 {[%emt 0:08:59]} 25. Rc1 {[%emt 0:03:09]} Rc6 {[%emt 0:07:02]} 26. Rxc6 {[%emt 0:05:46]} bxc6 {[%emt 0:00:05]} 27. Ne1 {[%emt 0:00:52]} Ne7 {[%emt 0:06:59]} 28. Nf3 {[%emt 0:09:23]} e5 {[%emt 0:01:16]} 29. Be4 {[%emt 0:02:35]} exd4 {[%emt 0:02:49]} 30. exd4 {[%emt 0:00:20]} Kf8 {[%emt 0:00:55]} 31. Ke3 {[%emt 0:02:47]} Ke8 {[%emt 0:02:51]} 32. Kd3 {[%emt 0:03:59]} Kd7 {[%emt 0:01:49]} 33. Kc4 {[%emt 0:00:07]} Kc7 {[%emt 0:00:20]} 34. h4 {[%emt 0:04:19]} Nd5 {[%emt 0:00:55]} 35. hxg5 {[%emt 0:00:36]} Be7 {[%emt 0:00:07]} 36. Bxd5 {[%emt 0:01:04]} Rxd5 {[%emt 0:00:26]} 37. Rf2 {[%emt 0:01:38]} Kb6 {[%emt 0:02:01]} 38. Ne5 {[%emt 0:03:55]} f6 39. gxf6 gxf6 {[%emt 0:03:57]} 40. Nf3 {[%emt 0:01:01]} Rd8 {[%emt 0:00:00]} 41. Re2 {[%emt 0:00:00]} Rd7 {[%emt 0:01:28]} 42. Ne1 {[%emt 0:03:43]} Bd8 {[%emt 0:03:06]} 43. Re4 {[%emt 0:00:36]} Rf7 {[%emt 0:01:58]} 44. Nd3 {[%emt 0:00:58]} Bc7 45. Re6 {[%emt 0:10:26]} Rg7 {[%emt 0:02:20]} 46. b4 {[%emt 0:03:32]} Rxg4 {[%emt 0:02:42]} 47. b5 {[%emt 0:00:15]} Be5 {[%emt 0:00:55]} 48. Rxc6+ {[%emt 0:00:20]} Ka7 {[%emt 0:00:23]} 49. Nxe5 {[%emt 0:06:36]} fxe5 {[%emt 0:00:08]} 50. Rd6 {[%emt 0:00:23]} exd4 {[%emt 0:00:08]} 51. Kc5 {[%emt 0:01:10]} Rg3 {[%emt 0:02:32]} 52. Rd7+ {[%emt 0:03:52]} Kb8 {[%emt 0:00:27]} 53. Kb6 {[%emt 0:00:30]} Kc8 {[%emt 0:00:14]} 54. Rxd4 {[%emt 0:00:45]} Rxa3 {[%emt 0:00:24]} 55. Ka7 {[%emt 0:00:49]} Re3 {[%emt 0:00:49]} 56. Rc4+ {[%emt 0:00:11]} Kd8 {[%emt 0:00:38]} 57. b6 {[%emt 0:00:06]} 1-0

[Event "POL-chT 2 Liga 2019"]
[Site "Poronin"]
[Date "2019.09.15"]
[Round "9.30"]
[White "Czarniecka, Aleksandra"]
[Black "Lukasiewicz, Anna"]
[Result "0-1"]
[ECO "C45"]
[WhiteElo "2003"]
[BlackElo "2075"]
[Annotator "NA"]
[PlyCount "74"]
[EventDate "2019.09.07"]
[EventType "team-tourn"]
[EventCountry "POL"]
[SourceTitle "playchess.com"]
[Source "ChessBase"]
[SourceQuality "1"]
[TimeControl "40/5400+30:1800+30"]

1. e4 e5 2. Nf3 Nc6 3. d4 exd4 4. Nxd4 Bc5 5. Be3 Qf6 6. c3 Nge7 7. Bc4 {[%emt 0:16:56]} O-O 8. O-O a6 {[%emt 0:04:32]} 9. Qd2 {[%emt 0:07:46]} h6 {[%emt 0:04:50]} 10. b4 {[%emt 0:02:38]} Ba7 {[%emt 0:01:16]} 11. Na3 {[%emt 0:02:10]} Ne5 {[%emt 0:09:24]} 12. Be2 {[%emt 0:02:25]} d6 {[%emt 0:02:47]} 13. f3 {[%emt 0:05:37]} Qg6 {[%emt 0:06:00]} 14. f4 {[%emt 0:07:19]} N5c6 {[%emt 0:00:55]} 15. f5 {[%emt 0:05:15]} Qf6 {[%emt 0:00:07]} 16. Rf3 {[%emt 0:02:47]} d5 {[%emt 0:05:12]} 17. Nxc6 {[%emt 0:05:36]} Bxe3+ {[%emt 0:04:21]} 18. Qxe3 {[%emt 0:01:46]} bxc6 {[%emt 0:00:21]} 19. e5 {[%emt 0:01:26]} Qg5 {[%emt 0:02:02]} 20. Qxg5 {[%emt 0:03:52]} hxg5 {[%emt 0:00:06]} 21. g4 {[%emt 0:01:18]} c5 {[%emt 0:06:42]} 22. b5 {[%emt 0:09:45]} axb5 {[%emt 0:04:34]} 23. Nxb5 {[%emt 0:00:18]} Ra4 {[%emt 0:05:36]} 24. c4 {[%emt 0:04:47]} Ba6 {[%emt 0:11:26]} 25. Nc3 {[%emt 0:06:39]} Ra5 {[%emt 0:04:21]} 26. f6 {[%emt 0:01:15]} Ng6 {[%emt 0:06:01]} 27. Nxd5 {[%emt 0:01:19]} Re8 {[%emt 0:00:35]} 28. Rf5 {[%emt 0:03:09]} c6 {[%emt 0:06:12]} 29. Nc7 {[%emt 0:06:14]} Rxe5 {[%emt 0:00:44]} 30. Rxe5 {[%emt 0:00:11]} Nxe5 {[%emt 0:00:05]} 31. Nxa6 {[%emt 0:01:08]} Rxa6 {[%emt 0:00:06]} 32. fxg7 {[%emt 0:00:35]} Ra3 {[%emt 0:01:13]} 33. Kf2 {[%emt 0:03:13]} Kxg7 {[%emt 0:00:40]} 34. Kg2 {[%emt 0:00:24]} f6 {[%emt 0:06:44]} 35. Kf2 {[%emt 0:00:34]} Kf7 {[%emt 0:00:15]} 36. Kg2 Ng6 {[%emt 0:02:28]} 37. Bf3 {[%emt 0:01:17]} Nh4+ {[%emt 0:00:17]} 0-1